[Event "BL 2024-25"]
[Site "Austria"]
[Date "2024.10.11"]
[Round "3.10"]
[White "Goldbeck, Lars"]
[Black "Maiwald, Jens-Uwe"]
[Result "1-0"]
[Annotator "TA"]
[ECO "A49"]
[WhiteElo "2372"]
[BlackElo "2429"]
[PlyCount "71"]
[EventDate "2024.08.28"]
[EventType "team-tourn"]
[EventCountry "AUT"]
[SourceTitle "playchess.com"]
[Source "ChessBase"]
[SourceQuality "1"]
[WhiteTeam "Salzburg"]
[BlackTeam "Mayrhofen-Zell-Ziller"]
[TimeControl "40/5400+30:1800+30"]

{[%evp 11,71,39,51,40,44,41,41,31,48,41,53,30,30,0,-1,-27,30,-19,-21,-150,-109,-100,-131,-121,-103,-163,-15,-17,13,44,77,0,11,0,-10,-138,-125,-171,-176,-170,-86,-119,-131,-512,0,30,34,-80,-88,-106,-86,-105,0,0,1194,1184,1137,1114,29989,29990,29992,29993]} 1. d4 {[%emt 0:00:03]} Nf6 {[%emt 0:00:21]} 2. Nf3 {[%emt 0:00:07]} d6 {[%emt 0:00:27]} 3. g3 {[%emt 0:03:01]} g6 {[%emt 0:00:44]} 4. Bg2 {[%emt 0:00:21]} Bg7 {[%emt 0:00:07]} 5. O-O {[%emt 0:00:04]} O-O {[%emt 0:00:10]} 6. a4 {[%emt 0:00:07]} Na6 {[%emt 0:04:04]} 7. Re1 {[%emt 0:09:06] A49: 1 d4 Pf6 2 Pf3 g6 3 g3: Anti-Konings-Indisch Systemen.} c5 {[%emt 0:00:20] OK} 8. d5 {[%emt 0:02:19]} e6 {[%emt 0:09:37] OK} 9. dxe6 {[%emt 0:07:00] OK. Wit staat iets beter.} Bxe6 {[%emt 0:00:25]} 10. Ng5 {[%emt 0:07:19][%cal Og5e6] Nxe6! is de sterke dreiging. OK} d5 $1 {[%emt 0:05:45] Sterk} 11. Nc3 $146 {[%emt 0:06:46]} ({Predecessor:} 11. c4 Nb4 12. Nxe6 fxe6 13. Nc3 d4 14. Ne4 Nxe4 15. Bxe4 Rf7 16. a5 Qd6 17. Ra3 {½-½ Tramacere,S (2071)-Koehl,R (2200) FRA AJEC 80 jub op Gr-36 email 2017}) 11... Nb4 {[%emt 0:03:54] OK} 12. Nxe6 {[%emt 0:01:23] Onnauwkeurig} fxe6 {[%emt 0:00:07]} 13. Bh3 {[%emt 0:05:58] Onnauwkeurig} d4 {[%emt 0:11:36] Fout (0.6)} (13... Kh8) 14. Bxe6+ {[%emt 0:07:02] Fout (0.5)} (14. Na2) 14... Kh8 $11 {[%emt 0:00:07] Beste (Gemakkelijk)} 15. Nb5 {[%emt 0:00:20] Houdt de partij in balans. Fout (1.3)} (15. Na2 $1 $11) 15... a6 $17 {[%emt 0:03:07][%mdl 1024] Zwart heeft sterke compensatie. OK} 16. Na3 {[%emt 0:00:09] OK} Ne4 {[%emt 0:01:52] Beste (Gemakkelijk)} 17. f4 {[%emt 0:06:57] OK} b5 {[%emt 0:05:55] Ontwijkt Nc4. OK} 18. Bg4 {[%emt 0:02:47] is een betere verdediging. Fout (0.6)} (18. e3 $17 d3 (18... bxa4 19. exd4 Bxd4+ 20. Kg2 $16) 19. c3) {Beter is} 18... Qb6 {[%emt 0:01:15] Fout (1.5)} ({En niet} 18... bxa4 19. Nc4 $11) (18... c4 $19 {met als doel voor ...Qe7.} 19. Bf3 Qe7) 19. Bf3 {[%emt 0:02:23]} Rfe8 {[%emt 0:03:15] Onnauwkeurig} 20. axb5 $1 {[%emt 0:06:20] Sterk} Rad8 {[%emt 0:15:15] OK} {Wit zou moeten spelen} 21. bxa6 {[%emt 0:08:47] Fout (0.7)} (21. Nc4 $16 Qxb5 22. Na3) 21... Qxa6 $11 {[%emt 0:05:12]} 22. Bd2 {[%emt 0:08:34]} Nc3 {[%emt 0:04:47] OK} 23. bxc3 {[%emt 0:06:56] was de enige mogelijkheid om het evenwicht te handhaven. Fout (1.3)} (23. Qc1 $1 $11) 23... dxc3 $17 {[%emt 0:00:08]} 24. Bxc3 {[%emt 0:00:03] was nodig. Fout (0.5)} Bxc3 $19 {[%emt 0:10:40]} 25. Qc1 {[%emt 0:00:03][%cal Oe2e4] OK} Rd2 {[%emt 0:02:13] Fout (0.8)} (25... Nc6 $1 $19 {[%cal Rc6d4] En nu zou ...Nd4 winnen.} 26. Kf1 Nd4) 26. Qb1 {[%emt 0:04:58] Onnauwkeurig} c4 {[%emt 0:02:36][%cal Oe8e3] Tegen Qb3. OK} 27. Rd1 $2 {[%emt 0:01:20][%mdl 8192] is weerbarstiger. Verliest partij (3.8)} (27. Kf1 $17) {Zwart zou moeten spelen} 27... Red8 $2 {[%emt 0:02:37] Gemiste overwinning (5.4)} (27... Rxd1+ 28. Qxd1 Rc8 29. h4 $15 (29. Bg4 Re8 $11)) (27... Rdxe2 $19 {( -> ...Qa7+)} 28. Bxe2 Rxe2 29. Rd8+ Kg7 30. Nxc4 (30. Rd7+ $2 Kf6 $19) 30... Qxc4 (30... Qxa1 $2 31. Rd7+ Kf6 32. Qxa1 $19) 31. Rd7+ Kh6) 28. Rxd2 $11 {[%emt 0:00:16] Beste (Gemakkelijk)} Rxd2 {[%emt 0:00:13] [#]} 29. Nxc4 {[%emt 0:00:27] houdt voorsprong. Fout (1.1)} Qxc4 $17 {[%emt 0:00:33]} (29... Qxa1 30. Qxa1 (30. Nxd2 Qa7+ 31. Kg2 Bxd2 $11) 30... Bxa1 31. Nxd2 $18) 30. Ra8+ {[%emt 0:00:01][%cal Ba1a8,Ba8e8,Be8e5][%mdl 32] EV=34.55. Goes to e5 (dbg)). Beste} Kg7 {[%emt 0:00:08][%cal Rd2c2] Beste (Gemakkelijk)} 31. Qb3 {[%emt 0:00:52] OK} {Zwart kan overwegen.} Qc5+ {[%emt 0:04:11] Fout (1.1)} (31... Bd4+ $17 32. Kh1 Rxc2 33. Qxc4 Rxc4) 32. Kg2 $11 {[%emt 0:01:05] Zwart moet nu Qg8+ voorkomen. Dansen op een scheermes. Beste (Gemakkelijk)} Qe3 $2 {[%emt 0:02:59][%mdl 8192] Verliest partij (11.9)} (32... Rxc2 $2 {vergaat.} 33. Qg8+ Kh6 34. g4 $18) (32... Nd5 $11) 33. Qg8+ $18 {[%emt 0:01:15] Beste} Kh6 {[%emt 0:00:02] [#] Beste} 34. Re8 $1 {[%emt 0:00:14]} ({Zwakker is} 34. Qf8+ Bg7 35. Qxb4 Rxe2+ 36. Bxe2 Qxe2+ 37. Kg1 Qd1+ 38. Kf2 Bd4+ 39. Kg2 Qxc2+ 40. Kh3 Qf5+ 41. Kg2 Qd5+ 42. Kh3 Qh5+ 43. Kg2 Qe2+ 44. Kh3 Qh5+ 45. Kg2 Qe2+ 46. Kh3 Qf1+ 47. Kg4 (47. Kh4 $2 Bf6+ 48. Kg4 Qe2+ 49. Kh3 Qh5+ 50. Kg2 Qd5+ 51. Kh3 Qxa8 $19) 47... Qd1+ 48. Kh3 Qh5+ $11) 34... Qc5 {[%emt 0:01:56]} 35. g4 {[%emt 0:01:22]} Bf6 {[%emt 0:00:01] [#]} 36. Re5 $1 {[%emt 0:00:25][%mdl 512] Wat een nare droom voor Zwart.   Blunder waarde: Wit=0.40/Zwart=0.96.  Verliest partij:   	Wit=1      	Zwart=1      Gemiste overwinning: 	---       	Zwart=1      Fout:        	Wit=7      	Zwart=4      Onnauwkeurig:    	Wit=3      	Zwart=1      OK:         	Wit=6      	Zwart=8      Beste:        	Wit=4      	Zwart=4      Sterk:        	Wit=1      	Zwart=1} 1-0

[Event "BL 2024-25"]
[Site "Austria"]
[Date "2024.10.11"]
[Round "3.11"]
[White "Platzgummer, Fabian"]
[Black "Hinterreiter, Markus"]
[Result "1/2-1/2"]
[Annotator "RC"]
[ECO "A49"]
[WhiteElo "2301"]
[BlackElo "2269"]
[PlyCount "71"]
[EventDate "2024.08.28"]
[EventType "team-tourn"]
[EventCountry "AUT"]
[SourceTitle "playchess.com"]
[Source "ChessBase"]
[SourceQuality "1"]
[WhiteTeam "Mayrhofen-Zell-Ziller"]
[BlackTeam "Salzburg"]
[TimeControl "40/5400+30:1800+30"]

1. Nf3 {[%emt 0:00:04]} d5 {[%emt 0:00:16]} 2. g3 {[%emt 0:00:29]} g6 {[%emt 0:00:36]} 3. d4 {[%emt 0:00:22]} Bg7 {[%emt 0:02:43]} 4. Bg2 {[%emt 0:00:10]} c6 {[%emt 0:01:14]} 5. O-O {[%emt 0:00:21]} Nf6 {[%emt 0:00:35]} 6. b3 {[%emt 0:04:27]} O-O {[%emt 0:01:18]} 7. c4 {[%emt 0:02:51]} dxc4 {[%emt 0:01:41]} 8. bxc4 {[%emt 0:00:12]} c5 {[%emt 0:00:17]} 9. Bb2 {[%emt 0:05:27]} cxd4 {[%emt 0:01:00]} 10. Nxd4 {[%emt 0:00:55]} Qb6 {[%emt 0:02:14]} 11. Qc2 {[%emt 0:18:11]} Bd7 {[%emt 0:04:35]} 12. Rd1 {[%emt 0:02:16]} Nc6 {[%emt 0:04:36]} 13. c5 {[%emt 0:16:40]} Nxd4 {[%emt 0:10:36]} 14. Bxd4 {[%emt 0:00:21]} Qc7 {[%emt 0:00:42]} 15. Nd2 {[%emt 0:10:36]} Bc6 {[%emt 0:04:55]} 16. Nf3 {[%emt 0:01:29]} Rfd8 {[%emt 0:04:09]} 17. Rac1 {[%emt 0:01:13]} Ne8 {[%emt 0:10:24]} 18. Bxg7 {[%emt 0:15:38]} Kxg7 {[%emt 0:03:51]} 19. Qc4 {[%emt 0:00:38]} h6 {[%emt 0:04:27]} 20. h4 {[%emt 0:04:22]} Nf6 {[%emt 0:01:41]} 21. a3 {[%emt 0:01:13]} Rac8 {[%emt 0:03:58]} 22. Qc3 {[%emt 0:04:32]} Rxd1+ {[%emt 0:07:18]} 23. Rxd1 {[%emt 0:00:01]} Be4 {[%emt 0:00:37]} 24. Rc1 {[%emt 0:04:40]} b6 {[%emt 0:01:26]} 25. Qe3 {[%emt 0:00:13]} bxc5 {[%emt 0:00:37]} 26. g4 {[%emt 0:00:09]} Bxf3 {[%emt 0:05:40]} 27. Bxf3 {[%emt 0:00:08]} Qd6 {[%emt 0:01:01]} 28. Rc4 {[%emt 0:02:20]} Nd5 {[%emt 0:03:29]} 29. Qc1 {[%emt 0:00:25]} Nb6 {[%emt 0:00:45]} 30. Re4 {[%emt 0:00:15]} c4 {[%emt 0:01:00]} 31. h5 {[%emt 0:02:27]} c3 {[%emt 0:03:07]} 32. e3 {[%emt 0:00:43]} g5 {[%emt 0:05:35]} 33. Rd4 {[%emt 0:00:32]} Qe6 {[%emt 0:00:32]} 34. Qc2 {[%emt 0:00:23]} Nd7 {[%emt 0:02:36]} 35. Bd5 {[%emt 0:00:21]} Qf6 {[%emt 0:00:46]} 36. Bxf7 {[%emt 0:00:41]} 1/2-1/2

[Event "BL 2024-25"]
[Site "Austria"]
[Date "2024.10.11"]
[Round "3.12"]
[White "Weber, Samuel"]
[Black "Tabernig, Bernhard"]
[Result "*"]
[Annotator "RC"]
[ECO "C00"]
[WhiteElo "2256"]
[BlackElo "2256"]
[PlyCount "65"]
[EventDate "2024.08.28"]
[EventType "team-tourn"]
[EventCountry "AUT"]
[SourceTitle "playchess.com"]
[Source "ChessBase"]
[SourceQuality "1"]
[WhiteTeam "Salzburg"]
[BlackTeam "Mayrhofen-Zell-Ziller"]
[TimeControl "40/5400+30:1800+30"]

1. e4 e6 {[%emt 1:31:00]} 2. d3 d5 {[%emt 0:00:30]} 3. Nd2 b6 {[%emt 0:00:30]} 4. Ngf3 Nf6 {[%emt 0:00:30]} 5. e5 Nfd7 {[%emt 0:00:30]} 6. d4 Be7 {[%emt 0:00:30]} 7. c3 a5 {[%emt 0:00:30]} 8. h4 Ba6 {[%emt 0:00:30]} 9. Bxa6 Nxa6 {[%emt 0:00:30]} 10. Nf1 h6 {[%emt 0:00:30]} 11. Ng3 c5 {[%emt 0:00:30]} 12. Qe2 Qc7 {[%emt 0:00:30]} 13. Bf4 c4 {[%emt 0:00:30]} 14. a4 Qc6 {[%emt 0:00:30]} 15. Nd2 Nc7 {[%emt 0:00:30]} 16. Qg4 g6 {[%emt 0:00:30]} 17. Ne2 b5 {[%emt 0:00:30]} 18. axb5 Qxb5 {[%emt 0:00:30]} 19. Ra2 a4 {[%emt 0:00:30]} 20. O-O Nb6 {[%emt 0:00:30]} 21. Be3 Kd7 {[%emt 0:00:30]} 22. h5 Rag8 {[%emt 0:00:30]} 23. hxg6 fxg6 {[%emt 0:00:30]} 24. Nf4 h5 {[%emt 0:00:30]} 25. Qd1 Kc8 {[%emt 0:00:30]} 26. Qc2 Qe8 {[%emt 0:00:30]} 27. Rfa1 g5 {[%emt 0:00:30]} 28. Nh3 g4 {[%emt 0:00:30]} 29. Nf4 h4 {[%emt 0:00:30]} 30. Rxa4 Nxa4 {[%emt 0:00:30]} 31. Rxa4 Bg5 {[%emt 0:00:30]} 32. b3 Bxf4 {[%emt 0:00:30]} 33. Bxf4 *

[Event "BL 2024-25"]
[Site "Austria"]
[Date "2024.10.11"]
[Round "3.13"]
[White "Gupta, Abhijeet"]
[Black "Kozak, Adam"]
[Result "1/2-1/2"]
[Annotator "TA"]
[ECO "D36"]
[WhiteElo "2573"]
[BlackElo "2600"]
[PlyCount "100"]
[EventDate "2024.08.28"]
[EventType "team-tourn"]
[EventCountry "AUT"]
[SourceTitle "playchess.com"]
[Source "ChessBase"]
[SourceQuality "1"]
[WhiteTeam "Wien-St Veit"]
[BlackTeam "Fuerstenfeld-Hartberg"]
[TimeControl "40/5400+30:1800+30"]

{[%evp 22,100,10,11,9,8,20,16,17,16,19,0,12,0,17,7,20,18,22,0,16,15,14,0,0,0,0,-8,0,-16,0,0,0,-20,10,-14,0,0,0,0,0,0,0,0,0,0,0,0,0,0,0,0,0,0,0,0,0,0,0,0,0,0,0,0,0,0,0,0,0,0,0,0,0,0,0,0,0,0,0,0,0]} 1. d4 {[%emt 0:00:18]} Nf6 {[%emt 0:00:11]} 2. c4 {[%emt 0:00:05]} e6 {[%emt 0:00:07]} 3. Nf3 {[%emt 0:00:07]} d5 {[%emt 0:01:09]} 4. Nc3 {[%emt 0:00:16]} Nbd7 {[%emt 0:01:18]} 5. Qc2 {[%emt 0:00:32]} c6 {[%emt 0:03:08]} 6. cxd5 {[%emt 0:01:04]} exd5 {[%emt 0:00:08]} 7. Bg5 {[%emt 0:00:09]} Be7 {[%emt 0:00:09]} 8. e3 {[%emt 0:00:06]} Nh5 {[%emt 0:00:06]} 9. Bxe7 {[%emt 0:00:58]} Qxe7 {[%emt 0:00:16]} 10. h3 {[%emt 0:00:59]} g6 {[%emt 0:01:45]} 11. O-O-O {[%emt 0:00:27]} Nb6 {[%emt 0:00:10]} 12. Bd3 {[%emt 0:00:27] The position is equal.} Be6 {[%emt 0:00:10]} 13. Kb1 {[%emt 0:01:38]} O-O-O {[%emt 0:00:09]} 14. Na4 {[%emt 0:01:23]} Kb8 {[%emt 0:00:05]} 15. Rc1 {[%emt 0:01:01]} Ng7 {[%emt 0:02:51]} 16. Qb3 {[%emt 0:08:44]} Nxa4 {[%emt 0:10:01]} 17. Qxa4 {[%emt 0:00:04]} Bf5 {[%emt 0:00:07]} 18. Rhd1 {[%emt 0:00:20]} f6 {[%emt 0:16:29]} 19. Ka1 {[%emt 0:01:57]} Rc8 {[%emt 0:04:49]} 20. Bf1 {[%emt 0:01:56]} Bd7 {[%emt 0:04:44]} 21. Rc3 {[%emt 0:02:43]} Rc7 {[%emt 0:02:58]} 22. Ra3 {[%emt 0:02:31]} b6 $1 {[%emt 0:00:59]} 23. Rc3 {[%emt 0:00:22]} Nf5 {[%emt 0:01:06]} 24. Qc2 {[%emt 0:00:25]} Nd6 {[%emt 0:01:17] Strongly threatening ...Ne4.} 25. Bd3 {[%emt 0:00:15]} g5 {[%emt 0:05:28]} 26. Rc1 {[%emt 0:02:56]} h6 {[%emt 0:03:14]} 27. Nd2 {[%emt 0:02:30]} Rhc8 {[%emt 0:04:41]} 28. a3 {[%emt 0:01:43]} c5 {[%emt 0:12:55]} 29. dxc5 {[%emt 0:13:16]} Rxc5 {[%emt 0:00:09]} 30. Rxc5 {[%emt 0:02:21]} Rxc5 {[%emt 0:00:10]} 31. Qb1 {[%emt 0:00:13]} Ne4 {[%emt 0:04:46]} 32. Bxe4 {[%emt 0:06:47]} Rxc1 {[%emt 0:00:18]} 33. Qxc1 {[%emt 0:00:04]} dxe4 $11 {[%emt 0:00:10][%mdl 4096] Endgame. KQB-KQN} 34. Qc3 {[%emt 0:03:47]} Qd6 {[%emt 0:00:36]} 35. b4 {[%emt 0:03:10]} (35. Nxe4 $2 {too greedy.} Qd1+ 36. Ka2 Qd5+ 37. b3 Qxe4 $19) 35... f5 {[%emt 0:06:28]} 36. Kb2 {[%emt 0:03:19]} Be6 {[%emt 0:06:02]} 37. Kc2 {[%emt 0:13:22]} Kb7 {[%emt 0:00:43]} 38. Kb2 {[%emt 0:00:32]} Kb8 {[%emt 0:01:26]} 39. g3 {[%emt 0:00:24]} Kb7 {[%emt 0:00:43]} 40. h4 {[%emt 0:04:20]} gxh4 {[%emt 0:02:41]} 41. gxh4 {[%emt 0:30:03]} Qd8 {[%emt 0:32:25]} 42. b5 {[%emt 0:06:32]} Qd5 {[%emt 0:01:39]} 43. a4 {[%emt 0:02:59]} a6 {[%emt 0:01:32]} 44. Qg7+ {[%emt 0:03:07]} Bd7 {[%emt 0:00:00]} 45. Nb3 {[%emt 0:00:00]} axb5 {[%emt 0:00:00]} 46. axb5 {[%emt 0:00:00]} Qxb5 {[%emt 0:00:00]} 47. Qxh6 {[%emt 0:00:00]} Qe2+ {[%emt 0:00:00]} 48. Ka3 {[%emt 0:00:00]} Qa6+ {[%emt 0:00:00]} 49. Kb2 {[%emt 0:00:00]} Qe2+ {[%emt 0:00:00]} 50. Ka3 {[%emt 0:00:00]} Qa6+ {[%emt 0:00:00] An interesting draw.   Weighted Error Value: White=0.03 (flawless) /Black=0.03 (flawless) .  Inaccurate:     	---       	Black=1      OK:         	White=18    	Black=11     Strong:       	---       	Black=1} 1/2-1/2

[Event "BL 2024-25"]
[Site "Austria"]
[Date "2024.10.11"]
[Round "3.14"]
[White "Berkes, Ferenc"]
[Black "Solodovnichenko, Yuri"]
[Result "1/2-1/2"]
[Annotator "TA"]
[ECO "D27"]
[WhiteElo "2604"]
[BlackElo "2497"]
[PlyCount "57"]
[EventDate "2024.08.28"]
[EventType "team-tourn"]
[EventCountry "AUT"]
[SourceTitle "playchess.com"]
[Source "ChessBase"]
[SourceQuality "1"]
[WhiteTeam "Fuerstenfeld-Hartberg"]
[BlackTeam "Wien-St Veit"]
[TimeControl "40/5400+30:1800+30"]

{[%evp 11,57,19,25,16,20,6,39,25,30,32,45,22,41,45,67,22,15,17,18,25,18,12,9,11,24,15,8,0,6,0,0,0,9,-11,0,0,0,0,0,0,0,0,66,0,0,0,57,0]} 1. d4 {[%emt 0:00:03]} d5 {[%emt 0:00:05]} 2. Nf3 {[%emt 0:00:17]} Nf6 {[%emt 0:00:23]} 3. c4 {[%emt 0:00:08]} dxc4 {[%emt 0:00:11]} 4. e3 {[%emt 0:00:09]} e6 {[%emt 0:00:05]} 5. Bxc4 {[%emt 0:00:06]} c5 {[%emt 0:00:07]} 6. O-O {[%emt 0:00:09]} a6 {[%emt 0:00:04]} 7. Be2 {[%emt 0:00:11]} b6 {[%emt 0:00:21]} 8. b3 {[%emt 0:05:38]} cxd4 {[%emt 0:00:49]} 9. Nxd4 {[%emt 0:01:55]} Bb7 {[%emt 0:00:07]} 10. Bb2 {[%emt 0:00:50]} Be7 {[%emt 0:15:43]} 11. Nd2 {[%emt 0:00:47]} O-O {[%emt 0:06:36]} 12. Rc1 {[%emt 0:01:04]} Ra7 {[%emt 0:09:27]} 13. Bf3 {[%emt 0:34:00]} Bxf3 {[%emt 0:03:35]} 14. N2xf3 {[%emt 0:00:35]} Rc7 {[%emt 0:09:11]} 15. Qe2 {[%emt 0:00:58]} Bd6 {[%emt 0:05:00]} 16. e4 {[%emt 0:06:54] [#] Strongly threatening e5.} Rxc1 {[%emt 0:06:40]} 17. Rxc1 {[%emt 0:00:15] And now e5 would win.} Bc5 {[%emt 0:00:16]} 18. a3 {[%emt 0:12:46]} a5 {[%emt 0:03:51]} 19. h3 {[%emt 0:05:10]} Qe7 {[%emt 0:00:26]} 20. Nb5 {[%emt 0:00:12]} Nc6 {[%emt 0:02:33]} 21. Ne1 {[%emt 0:00:11]} e5 {[%emt 0:04:17]} 22. Nf3 {[%emt 0:08:16]} Rd8 {[%emt 0:03:09]} 23. b4 {[%emt 0:00:18]} axb4 {[%emt 0:00:28]} 24. axb4 {[%emt 0:00:05]} Nxb4 {[%emt 0:00:15]} 25. Nxe5 {[%emt 0:00:08]} Qe8 {[%emt 0:10:41][%cal Of6e4]} 26. Nc7 {[%emt 0:13:03]} Qe7 {[%emt 0:05:06]} ({Black should try} 26... Qa4 $11) 27. Nb5 {[%emt 0:00:05]} (27. Na6 $1 $14 Nxe4 (27... Nxa6 28. Nc6 $14) 28. Nxc5 Nxc5 29. Qg4) 27... Qe8 {[%emt 0:01:06]} (27... Nd7 $11 28. Nf3 Nf6 29. Ne5) 28. Nc7 $14 {[%emt 0:00:05]} Qe7 {[%emt 0:13:58]} 29. Nb5 {[%emt 0:00:11] Weighted Error Value: White=0.10 (very precise) /Black=0.08 (flawless) .  Mistake:       	White=2     	Black=2      Inaccurate:     	White=1     	Black=1      OK:         	White=9     	Black=10     Best:        	---       	Black=1} (29. Na6 $1 $14 Nxa6 30. Nc6 Qxe4 31. Qxe4 (31. Qxa6 $2 {too greedy.} Qxc6 32. Qe2 Qe4 $19) 31... Nxe4 32. Nxd8) 1/2-1/2

[Event "BL 2024-25"]
[Site "Austria"]
[Date "2024.10.11"]
[Round "3.15"]
[White "Koellner, Ruben Gideon"]
[Black "Samunenkov, Ihor"]
[Result "1/2-1/2"]
[Annotator "TA"]
[ECO "B13"]
[WhiteElo "2480"]
[BlackElo "2533"]
[PlyCount "94"]
[EventDate "2024.08.28"]
[EventType "team-tourn"]
[EventCountry "AUT"]
[SourceTitle "playchess.com"]
[Source "ChessBase"]
[SourceQuality "1"]
[WhiteTeam "Wien-St Veit"]
[BlackTeam "Fuerstenfeld-Hartberg"]
[TimeControl "40/5400+30:1800+30"]

{[%evp 23,94,26,33,23,15,28,42,-16,-24,-45,0,0,0,0,0,0,0,0,9,-29,-34,-20,0,0,6,-4,-24,-16,-20,-419,0,0,3,-59,0,-50,-50,-87,-78,-103,-47,-93,-93,-91,-88,-93,-83,-84,-76,-77,-68,-68,-68,-71,-67,-66,-66,-66,-66,-72,-40,-56,-46,-53,-53,-95,-50,-93,0,-92,0,0,0]} 1. d4 {[%emt 0:00:05]} d5 {[%emt 0:00:18]} 2. Nf3 {[%emt 0:00:10]} c5 {[%emt 0:00:11]} 3. e3 {[%emt 0:00:14]} cxd4 {[%emt 0:00:11]} 4. exd4 {[%emt 0:00:04]} Nc6 {[%emt 0:00:12]} 5. Nbd2 {[%emt 0:00:18]} Bf5 {[%emt 0:07:21]} 6. Bb5 {[%emt 0:00:32] B13: Caro-Kann: Exchange Variation and Panov-Botvinnik Attack.} e6 {[%emt 0:09:17]} 7. c4 $146 {[%emt 0:04:20]} ({Predecessor:} 7. O-O Bd6 8. c3 h6 9. Ne5 Nge7 10. Qe2 O-O 11. f4 a6 12. Bd3 Bxd3 13. Qxd3 {0-1 Aguilera Lopez,A (2198)-Tejedor Fuente,E (2428) Lorca op 7th 2018 (6)}) 7... Nge7 {[%emt 0:04:14]} 8. c5 {[%emt 0:02:18]} a6 {[%emt 0:17:15]} 9. Ba4 {[%emt 0:00:57]} g6 {[%emt 0:00:15]} 10. Ne5 {[%emt 0:05:18]} h5 {[%emt 0:14:34]} 11. Qb3 {[%emt 0:15:05]} Qc8 {[%emt 0:05:59]} 12. Ndf3 {[%emt 0:09:03]} Bg7 {[%emt 0:00:56]} 13. Bf4 {[%emt 0:12:03]} O-O {[%emt 0:02:17]} 14. O-O {[%emt 0:01:46]} Be4 {[%emt 0:03:06]} 15. Nxc6 {[%emt 0:11:51]} (15. Rad1 $14) 15... Nxc6 {[%emt 0:00:43]} 16. Bd6 {[%emt 0:05:34]} Rd8 {[%emt 0:02:29]} 17. Bxc6 {[%emt 0:02:02]} bxc6 {[%emt 0:00:13]} 18. Ne5 {[%emt 0:01:21]} f6 {[%emt 0:05:39]} 19. f3 {[%emt 0:00:09]} Bf5 {[%emt 0:02:04]} 20. Nd3 {[%emt 0:00:20]} g5 {[%emt 0:05:34]} 21. h4 {[%emt 0:01:35]} gxh4 {[%emt 0:07:04]} 22. Nf4 {[%emt 0:00:33]} Bh6 {[%emt 0:01:10]} 23. Nxh5 {[%emt 0:01:30]} Kf7 {[%emt 0:00:09]} 24. g4 {[%emt 0:00:38]} hxg3 {[%emt 0:04:00]} 25. Nxg3 {[%emt 0:00:25]} Bh3 {[%emt 0:00:15]} 26. Rfe1 $2 {[%emt 0:03:42][%mdl 8192]} (26. Rf2 $11 Rxd6 27. Rh2 (27. cxd6 Bf4 $15)) 26... Bg5 $2 {[%emt 0:04:15]} (26... Rxd6 $1 $19 27. cxd6 Bf4) 27. Kf2 $11 {[%emt 0:02:20]} Bh4 {[%emt 0:00:47]} 28. Rg1 {[%emt 0:12:56]} (28. Rh1 $11 e5 29. Rh2 (29. dxe5 $2 {is the wrong capture.} Bxg3+ 30. Kxg3 Rg8+ 31. Kf2 Rg2+ 32. Ke1 Qh8 $19)) 28... a5 {[%emt 0:01:46]} (28... Rg8 $15) 29. Qd3 {[%emt 0:01:57]} (29. Rh1 $11 e5 30. Rag1 (30. dxe5 $2 {loses.} Bxg3+ 31. Kxg3 Rg8+ 32. Kf2 Rg2+ 33. Ke1 Qh8 $19)) 29... Bf5 $15 {[%emt 0:00:55]} 30. Qe2 {[%emt 0:01:10]} Rh8 {[%emt 0:00:45]} 31. Rh1 {[%emt 0:00:47]} Qd7 {[%emt 0:00:21]} (31... Qb7 $1 $17 {...Rag8 would now be deadly.} 32. Qd2 Rag8) 32. Rh2 {[%emt 0:03:42] [#]} (32. Rae1 $15 {is superior.}) 32... e5 $1 $17 {[%emt 0:00:09]} 33. Rah1 {[%emt 0:00:46]} Bxg3+ {[%emt 0:00:48]} 34. Kxg3 {[%emt 0:00:01]} Rag8+ {[%emt 0:00:20]} 35. Kf2 {[%emt 0:00:08]} Rxh2+ {[%emt 0:00:05]} 36. Rxh2 {[%emt 0:00:04]} exd4 {[%emt 0:00:38]} 37. Qd2 {[%emt 0:00:57]} d3 {[%emt 0:00:19]} 38. Rh1 {[%emt 0:01:15]} a4 {[%emt 0:02:22]} 39. Re1 {[%emt 0:01:08]} Re8 {[%emt 0:00:17]} 40. Rxe8 {[%emt 0:00:42]} Qxe8 {[%emt 0:00:20]} 41. Qe1 {[%emt 0:30:40]} Qh8 {[%emt 0:07:09]} 42. Qe7+ {[%emt 0:00:00]} Kg6 {[%emt 0:00:08]} 43. Bg3 {[%emt 0:00:00]} d4 {[%emt 0:08:56]} 44. a3 {[%emt 0:00:00]} Qg8 {[%emt 0:11:26]} 45. Bh4 {[%emt 0:00:00]} Qh8 {[%emt 0:00:17]} 46. Bg3 {[%emt 0:00:00] [#]} Kg5 {[%emt 0:02:06]} (46... Qc8 $1 $17 47. Bd6 Be6) 47. Qd6 $11 {[%emt 0:00:00]} Kg6 {[%emt 0:03:14]} 1/2-1/2